[Event "Early-Titled-Tuesday-Blitz-March-05-2024"]
[Site "Chess.com"]
[Date "2024.03.05"]
[Round "2"]
[White "M1711"]
[Black "TheKingDoctor"]
[Result "0-1"]
[WhiteElo "2593"]
[BlackElo "2370"]
[TimeControl "180+1"]
[EndTime "8:19:51 PST"]
[Termination "TheKingDoctor won on time"]

1. e4 {[%clk 0:03:00.9]} 1... e5 {[%clk 0:02:56.6]} 2. Nf3 {[%clk 0:03:01]} 2...
Nc6 {[%clk 0:02:56.8]} 3. Nc3 {[%clk 0:03:01.8]} 3... Nf6 {[%clk 0:02:56.9]} 4.
a3 {[%clk 0:03:02.6]} 4... d5 {[%clk 0:02:56.3]} 5. Bb5 {[%clk 0:03:01.6]} 5...
d4 {[%clk 0:02:55.6]} 6. Ne2 {[%clk 0:02:59.4]} 6... Bd6 {[%clk 0:02:54.8]} 7.
Ng3 {[%clk 0:02:56.3]} 7... O-O {[%clk 0:02:53.9]} 8. d3 {[%clk 0:02:52.3]} 8...
h6 {[%clk 0:02:45.9]} 9. Bxc6 {[%clk 0:02:46.9]} 9... bxc6 {[%clk 0:02:45.7]}
10. O-O {[%clk 0:02:47.3]} 10... Rb8 {[%clk 0:02:46.1]} 11. c4 {[%clk 0:02:40]}
11... dxc3 {[%clk 0:02:45.6]} 12. bxc3 {[%clk 0:02:40.3]} 12... Ba6 {[%clk
0:02:45.9]} 13. Qc2 {[%clk 0:02:39.6]} 13... c5 {[%clk 0:02:44.5]} 14. Rd1
{[%clk 0:02:38.2]} 14... c4 {[%clk 0:02:43.3]} 15. d4 {[%clk 0:02:35.7]} 15...
Qe8 {[%clk 0:02:21.2]} 16. Nf5 {[%clk 0:02:23]} 16... exd4 {[%clk 0:02:19.1]}
17. Nxd6 {[%clk 0:02:19.6]} 17... cxd6 {[%clk 0:02:18.7]} 18. Rxd4 {[%clk
0:02:19.4]} 18... Bb7 {[%clk 0:02:11.2]} 19. Bf4 {[%clk 0:01:40.1]} 19... Bxe4
{[%clk 0:02:09.6]} 20. Qd1 {[%clk 0:01:40.8]} 20... Bd3 {[%clk 0:01:09.3]} 21.
Bxd6 {[%clk 0:01:35.2]} 21... Ne4 {[%clk 0:01:09.4]} 22. Bxf8 {[%clk 0:01:22.8]}
22... Nxc3 {[%clk 0:01:08.6]} 23. Qe1 {[%clk 0:00:27.1]} 23... Ne2+ {[%clk
0:01:08.2]} 24. Kh1 {[%clk 0:00:27.9]} 24... Nxd4 {[%clk 0:01:08.7]} 25. Qxe8
{[%clk 0:00:25]} 25... Rxe8 {[%clk 0:01:09.6]} 26. Nxd4 {[%clk 0:00:24.2]} 26...
Rxf8 {[%clk 0:01:09.8]} 27. Rc1 {[%clk 0:00:19.7]} 27... Re8 {[%clk 0:01:08]}
28. f3 {[%clk 0:00:17.9]} 28... Rd8 {[%clk 0:01:03]} 29. Nb5 {[%clk 0:00:17.3]}
29... a5 {[%clk 0:01:00.6]} 30. Kg1 {[%clk 0:00:16.7]} 30... Re8 {[%clk
0:00:58.9]} 31. Nc3 {[%clk 0:00:12.6]} 31... Rb8 {[%clk 0:00:57.6]} 32. Na4
{[%clk 0:00:05.4]} 32... Rb3 {[%clk 0:00:55.8]} 33. Rc3 {[%clk 0:00:06]} 33...
Rb1+ {[%clk 0:00:55.5]} 34. Kf2 {[%clk 0:00:05.9]} 34... Ra1 {[%clk 0:00:54.2]}
35. Nb6 {[%clk 0:00:04.8]} 35... Ra2+ {[%clk 0:00:51.7]} 36. Kg1 {[%clk
0:00:05.4]} 36... g5 {[%clk 0:00:45.6]} 37. Nxc4 {[%clk 0:00:03]} 37... Bxc4
{[%clk 0:00:44.3]} 38. Rxc4 {[%clk 0:00:03.9]} 38... Rxa3 {[%clk 0:00:44]} 39.
Rc6 {[%clk 0:00:03.9]} 39... Kg7 {[%clk 0:00:44.1]} 40. Ra6 {[%clk 0:00:03.9]}
40... Ra2 {[%clk 0:00:44]} 41. h3 {[%clk 0:00:03.9]} 41... a4 {[%clk 0:00:44.5]}
42. Kh2 {[%clk 0:00:04.3]} 42... a3 {[%clk 0:00:45.2]} 43. Kg3 {[%clk
0:00:03.6]} 43... h5 {[%clk 0:00:45.5]} 44. h4 {[%clk 0:00:03.1]} 44... g4
{[%clk 0:00:29.8]} 45. fxg4 {[%clk 0:00:03.5]} 45... hxg4 {[%clk 0:00:29.9]} 46.
Ra5 {[%clk 0:00:03.6]} 46... Kg6 {[%clk 0:00:26.3]} 47. Rg5+ {[%clk 0:00:02.6]}
47... Kh6 {[%clk 0:00:25.2]} 48. Rxg4 {[%clk 0:00:02.9]} 48... Rb2 {[%clk
0:00:25.8]} 49. Ra4 {[%clk 0:00:03.1]} 49... a2 {[%clk 0:00:26.4]} 50. Kf3
{[%clk 0:00:02.1]} 50... Kh5 {[%clk 0:00:26.2]} 51. g3 {[%clk 0:00:01.8]} 51...
f5 {[%clk 0:00:25.4]} 52. Ra5 {[%clk 0:00:02.2]} 52... Kg6 {[%clk 0:00:25.9]}
53. Ke3 {[%clk 0:00:01.9]} 53... Rg2 {[%clk 0:00:25.1]} 54. Kf3 {[%clk
0:00:01.8]} 54... Rc2 {[%clk 0:00:24.9]} 55. Ra6+ {[%clk 0:00:01.9]} 55... Kh5
{[%clk 0:00:24.8]} 56. Ke3 {[%clk 0:00:02]} 56... Kg4 {[%clk 0:00:24.1]} 57. h5
{[%clk 0:00:01.4]} 57... Kxg3 {[%clk 0:00:22.5]} 58. h6 {[%clk 0:00:02.1]} 58...
f4+ {[%clk 0:00:22.7]} 59. Kd3 {[%clk 0:00:02.8]} 59... Rh2 {[%clk 0:00:22.8]}
60. h7 {[%clk 0:00:02.7]} 60... Rxh7 {[%clk 0:00:20.6]} 61. Rxa2 {[%clk
0:00:03.3]} 61... Re7 {[%clk 0:00:19.6]} 62. Ra6 {[%clk 0:00:01.7]} 62... f3
{[%clk 0:00:19.4]} 63. Rg6+ {[%clk 0:00:02.5]} 63... Kf2 {[%clk 0:00:20]} 64.
Rf6 {[%clk 0:00:02.7]} 64... Kg2 {[%clk 0:00:20.1]} 65. Rg6+ {[%clk 0:00:02.2]}
65... Kf1 {[%clk 0:00:20.8]} 66. Rf6 {[%clk 0:00:02.5]} 66... f2 {[%clk
0:00:21.4]} 67. Kd2 {[%clk 0:00:02.4]} 67... Re5 {[%clk 0:00:21.1]} 68. Rf8
{[%clk 0:00:02.4]} 68... Rd5+ {[%clk 0:00:21.6]} 69. Ke3 {[%clk 0:00:02.6]}
69... Re5+ {[%clk 0:00:18.5]} 70. Kd2 {[%clk 0:00:03]} 70... Re7 {[%clk
0:00:18.5]} 71. Rf6 {[%clk 0:00:03.1]} 71... Rd7+ {[%clk 0:00:15]} 72. Ke3
{[%clk 0:00:03.2]} 72... Ke1 {[%clk 0:00:13.1]} 73. Rh6 {[%clk 0:00:01.4]} 73...
f1=Q {[%clk 0:00:11.6]} 74. Rh2 {[%clk 0:00:01.2]} 74... Re7+ {[%clk 0:00:10.3]}
0-1

[Event "Early-Titled-Tuesday-Blitz-March-05-2024"]
[Site "Chess.com"]
[Date "2024.03.05"]
[Round "2"]
[White "Qvalda"]
[Black "isaak2009"]
[Result "0-1"]
[WhiteElo "2438"]
[BlackElo "2753"]
[TimeControl "180+1"]
[EndTime "8:19:56 PST"]
[Termination "isaak2009 won on time"]

1. d4 {[%clk 0:03:00.9]} 1... d5 {[%clk 0:03:00]} 2. c4 {[%clk 0:02:58.8]} 2...
c6 {[%clk 0:03:00.5]} 3. cxd5 {[%clk 0:02:57.9]} 3... cxd5 {[%clk 0:03:01.4]} 4.
Nc3 {[%clk 0:02:57.8]} 4... Nf6 {[%clk 0:03:01.8]} 5. Bf4 {[%clk 0:02:57.7]}
5... Nc6 {[%clk 0:03:01.6]} 6. e3 {[%clk 0:02:57.9]} 6... Bf5 {[%clk 0:03:01.1]}
7. Rc1 {[%clk 0:02:57.1]} 7... a6 {[%clk 0:02:55.9]} 8. Nf3 {[%clk 0:02:53.4]}
8... e6 {[%clk 0:02:54.6]} 9. h3 {[%clk 0:02:53.1]} 9... Bd6 {[%clk 0:02:53.9]}
10. Bxd6 {[%clk 0:02:46.1]} 10... Qxd6 {[%clk 0:02:54.8]} 11. Be2 {[%clk
0:02:44.5]} 11... O-O {[%clk 0:02:54.6]} 12. O-O {[%clk 0:02:44.2]} 12... b5
{[%clk 0:02:54.9]} 13. a3 {[%clk 0:02:40.1]} 13... Na5 {[%clk 0:02:52.6]} 14.
Ne5 {[%clk 0:02:34.3]} 14... Rfc8 {[%clk 0:02:53.1]} 15. Nd3 {[%clk 0:02:09.5]}
15... Nc4 {[%clk 0:02:44.9]} 16. Rc2 {[%clk 0:01:34]} 16... a5 {[%clk
0:02:42.8]} 17. Nxb5 {[%clk 0:01:29.6]} 17... Qb6 {[%clk 0:02:38.9]} 18. a4
{[%clk 0:01:27.2]} 18... Ne4 {[%clk 0:02:22.8]} 19. b3 {[%clk 0:01:25.7]} 19...
Ncd6 {[%clk 0:02:18.5]} 20. Rxc8+ {[%clk 0:01:24.5]} 20... Rxc8 {[%clk
0:02:17.9]} 21. Bf3 {[%clk 0:00:48.2]} 21... Nxb5 {[%clk 0:02:13.7]} 22. axb5
{[%clk 0:00:45.7]} 22... Nc3 {[%clk 0:01:56.7]} 23. Qd2 {[%clk 0:00:45.6]} 23...
Qxb5 {[%clk 0:01:56.1]} 24. Nc5 {[%clk 0:00:39.2]} 24... Qb4 {[%clk 0:01:46.1]}
25. Rc1 {[%clk 0:00:32.8]} 25... Nb5 {[%clk 0:01:34.3]} 26. Qxb4 {[%clk
0:00:32.8]} 26... axb4 {[%clk 0:01:35.2]} 27. Be2 {[%clk 0:00:28.2]} 27... Nc3
{[%clk 0:01:31.2]} 28. Bf1 {[%clk 0:00:25.8]} 28... Bb1 {[%clk 0:01:19.1]} 29.
Kh2 {[%clk 0:00:19.9]} 29... Ba2 {[%clk 0:00:43.8]} 30. Na6 {[%clk 0:00:17.8]}
30... Bxb3 {[%clk 0:00:42.8]} 31. Nxb4 {[%clk 0:00:17.7]} 31... g5 {[%clk
0:00:36.7]} 32. Nd3 {[%clk 0:00:17.7]} 32... Ba4 {[%clk 0:00:24.3]} 33. Nb2
{[%clk 0:00:16]} 33... Bd7 {[%clk 0:00:20.4]} 34. Nd1 {[%clk 0:00:14.4]} 34...
Ne4 {[%clk 0:00:07.7]} 35. Rxc8+ {[%clk 0:00:13.3]} 35... Bxc8 {[%clk
0:00:08.6]} 36. f3 {[%clk 0:00:13]} 36... Nd6 {[%clk 0:00:09.3]} 37. Bd3 {[%clk
0:00:13]} 37... Kg7 {[%clk 0:00:09.3]} 38. Kg3 {[%clk 0:00:13.3]} 38... Bb7
{[%clk 0:00:09.3]} 39. Kf2 {[%clk 0:00:13.7]} 39... Kf6 {[%clk 0:00:09.7]} 40.
Nc3 {[%clk 0:00:14.2]} 40... h6 {[%clk 0:00:10.1]} 41. Nb5 {[%clk 0:00:14.6]}
41... Nc8 {[%clk 0:00:10.2]} 42. Be2 {[%clk 0:00:13.1]} 42... Bc6 {[%clk
0:00:10.7]} 43. Nc3 {[%clk 0:00:12.8]} 43... Nd6 {[%clk 0:00:11.2]} 44. Bd3
{[%clk 0:00:12.6]} 44... Nb7 {[%clk 0:00:11.3]} 45. e4 {[%clk 0:00:12.7]} 45...
Nd6 {[%clk 0:00:11.5]} 46. e5+ {[%clk 0:00:12.8]} 46... Ke7 {[%clk 0:00:12.3]}
47. exd6+ {[%clk 0:00:13.7]} 47... Kxd6 {[%clk 0:00:12.8]} 48. Ke3 {[%clk
0:00:13.6]} 48... Bd7 {[%clk 0:00:12.4]} 49. Bb5 {[%clk 0:00:13.2]} 49... Bc8
{[%clk 0:00:12.5]} 50. Na4 {[%clk 0:00:13]} 50... f5 {[%clk 0:00:10.2]} 51. Nc5
{[%clk 0:00:12.6]} 51... f4+ {[%clk 0:00:09.1]} 52. Kf2 {[%clk 0:00:11.9]} 52...
e5 {[%clk 0:00:10]} 53. Ba6 {[%clk 0:00:06.2]} 53... Bf5 {[%clk 0:00:05.6]} 54.
Ke2 {[%clk 0:00:05.7]} 54... exd4 {[%clk 0:00:04.1]} 55. Nb3 {[%clk 0:00:05.9]}
55... Ke5 {[%clk 0:00:03.4]} 56. Bd3 {[%clk 0:00:05.6]} 56... Bd7 {[%clk
0:00:03.5]} 57. Kd2 {[%clk 0:00:05.7]} 57... Ba4 {[%clk 0:00:03.6]} 58. Nc5
{[%clk 0:00:05.4]} 58... Be8 {[%clk 0:00:04.4]} 59. Be2 {[%clk 0:00:05.4]} 59...
Bc6 {[%clk 0:00:04.1]} 60. Nd3+ {[%clk 0:00:05.5]} 60... Kd6 {[%clk 0:00:04.8]}
61. Bd1 {[%clk 0:00:06.1]} 61... Bb5 {[%clk 0:00:04.9]} 62. Bb3 {[%clk
0:00:05.9]} 62... Bc4 {[%clk 0:00:05.1]} 63. Nc1 {[%clk 0:00:04.5]} 63... Bb5
{[%clk 0:00:04.9]} 64. Nd3 {[%clk 0:00:04.2]} 64... Bc4 {[%clk 0:00:05.3]} 65.
Bc2 {[%clk 0:00:04.6]} 65... Bb5 {[%clk 0:00:04.6]} 66. Bd1 {[%clk 0:00:04.9]}
66... Bc4 {[%clk 0:00:04.8]} 67. Be2 {[%clk 0:00:05.1]} 67... Bb5 {[%clk
0:00:04.9]} 68. Nxf4 {[%clk 0:00:04.9]} 68... Bd7 {[%clk 0:00:02.4]} 69. Nd3
{[%clk 0:00:04.8]} 69... Bf5 {[%clk 0:00:02.6]} 70. g4 {[%clk 0:00:03.5]} 70...
Bg6 {[%clk 0:00:01.9]} 71. f4 {[%clk 0:00:02.7]} 71... Be4 {[%clk 0:00:02.2]}
72. f5 {[%clk 0:00:02.5]} 72... Ke7 {[%clk 0:00:01.9]} 73. Nf2 {[%clk
0:00:01.7]} 73... Kf6 {[%clk 0:00:02]} 0-1

[Event "Early-Titled-Tuesday-Blitz-March-05-2024"]
[Site "Chess.com"]
[Date "2024.03.05"]
[Round "2"]
[White "sorch29"]
[Black "LikeWater"]
[Result "0-1"]
[WhiteElo "2427"]
[BlackElo "2697"]
[TimeControl "180+1"]
[EndTime "8:20:14 PST"]
[Termination "LikeWater won by resignation"]

1. c4 {[%clk 0:03:00.9]} 1... c6 {[%clk 0:02:59.1]} 2. d4 {[%clk 0:03:00.4]}
2... d5 {[%clk 0:02:58.5]} 3. cxd5 {[%clk 0:03:01.3]} 3... cxd5 {[%clk
0:02:58.5]} 4. Nc3 {[%clk 0:03:02.2]} 4... e6 {[%clk 0:02:58.1]} 5. Nf3 {[%clk
0:03:03.1]} 5... Bd6 {[%clk 0:02:54.1]} 6. Bg5 {[%clk 0:03:01.9]} 6... Ne7
{[%clk 0:02:51.1]} 7. e3 {[%clk 0:03:01.4]} 7... Nbc6 {[%clk 0:02:47.6]} 8. Bd3
{[%clk 0:03:01.6]} 8... O-O {[%clk 0:02:44.6]} 9. O-O {[%clk 0:03:01.9]} 9... f6
{[%clk 0:02:43.6]} 10. Bh4 {[%clk 0:03:01.1]} 10... Bd7 {[%clk 0:02:37.7]} 11.
e4 {[%clk 0:02:53.2]} 11... Be8 {[%clk 0:02:36.2]} 12. Re1 {[%clk 0:02:41.3]}
12... Bh5 {[%clk 0:02:33.9]} 13. exd5 {[%clk 0:02:18.5]} 13... Nxd4 {[%clk
0:02:15.9]} 14. dxe6 {[%clk 0:02:01.7]} 14... Nxf3+ {[%clk 0:01:02.2]} 15. gxf3
{[%clk 0:02:02.6]} 15... Qb6 {[%clk 0:00:47.2]} 16. Na4 {[%clk 0:01:37.6]} 16...
Qb4 {[%clk 0:00:39.7]} 17. Re4 {[%clk 0:01:34]} 17... Qa5 {[%clk 0:00:36.7]} 18.
Rd4 {[%clk 0:01:17.8]} 18... Be5 {[%clk 0:00:18.4]} 19. Rd7 {[%clk 0:01:14.1]}
19... Ng6 {[%clk 0:00:15.5]} 20. Bg3 {[%clk 0:01:14.3]} 20... Bxg3 {[%clk
0:00:13.4]} 21. hxg3 {[%clk 0:01:13.4]} 21... Ne5 {[%clk 0:00:13.8]} 22. Be4
{[%clk 0:00:48.9]} 22... Nxd7 {[%clk 0:00:11.7]} 23. exd7 {[%clk 0:00:49.8]}
23... Rad8 {[%clk 0:00:10]} 24. Bxb7 {[%clk 0:00:45.4]} 24... Bf7 {[%clk
0:00:05]} 25. Rc1 {[%clk 0:00:39.3]} 25... Bxa2 {[%clk 0:00:02.7]} 26. Rc8
{[%clk 0:00:38.6]} 26... Bf7 {[%clk 0:00:02.6]} 27. Nc5 {[%clk 0:00:31.3]} 27...
Qb5 {[%clk 0:00:02.5]} 28. Qd4 {[%clk 0:00:26.4]} 28... Qb6 {[%clk 0:00:02.2]}
29. b4 {[%clk 0:00:24.7]} 29... h5 {[%clk 0:00:02.5]} 30. Be4 {[%clk 0:00:23.2]}
30... g6 {[%clk 0:00:01.2]} 31. Kg2 {[%clk 0:00:23.5]} 31... Kg7 {[%clk
0:00:01.8]} 32. Bd3 {[%clk 0:00:23]} 32... Kg8 {[%clk 0:00:02]} 33. Bc4 {[%clk
0:00:22.8]} 33... Kg7 {[%clk 0:00:02.6]} 34. Bxf7 {[%clk 0:00:22.9]} 34... Rxf7
{[%clk 0:00:03.5]} 35. Qd5 {[%clk 0:00:20.7]} 35... Re7 {[%clk 0:00:03.3]} 36.
Rxd8 {[%clk 0:00:19]} 36... Qxd8 {[%clk 0:00:04.2]} 37. Ne6+ {[%clk 0:00:19.7]}
37... Rxe6 {[%clk 0:00:04.4]} 38. Qxe6 {[%clk 0:00:20.6]} 38... Kf8 {[%clk
0:00:05.3]} 39. f4 {[%clk 0:00:20.1]} 39... Qe7 {[%clk 0:00:05.5]} 40. Qd5
{[%clk 0:00:19.5]} 40... Qd8 {[%clk 0:00:06]} 41. Qd6+ {[%clk 0:00:19.5]} 41...
Kf7 {[%clk 0:00:06]} 42. Kh2 {[%clk 0:00:20.4]} 42... g5 {[%clk 0:00:05.6]} 43.
fxg5 {[%clk 0:00:20.4]} 43... fxg5 {[%clk 0:00:06.5]} 44. f4 {[%clk 0:00:20]}
44... gxf4 {[%clk 0:00:06.2]} 45. Qxf4+ {[%clk 0:00:20.5]} 45... Ke6 {[%clk
0:00:06.5]} 46. Qf3 {[%clk 0:00:17.9]} 46... Qxd7 {[%clk 0:00:06]} 47. Qxh5
{[%clk 0:00:18]} 47... Qd2+ {[%clk 0:00:06.3]} 48. Kh3 {[%clk 0:00:18.5]} 48...
Qxb4 {[%clk 0:00:06.9]} 49. Qh6+ {[%clk 0:00:18.8]} 49... Kd5 {[%clk 0:00:07.4]}
50. Qg5+ {[%clk 0:00:19]} 50... Kc4 {[%clk 0:00:07]} 51. Qf4+ {[%clk 0:00:19.6]}
51... Kb3 {[%clk 0:00:07.3]} 52. Qf3+ {[%clk 0:00:20.1]} 52... Ka4 {[%clk
0:00:07]} 53. g4 {[%clk 0:00:20.3]} 53... a5 {[%clk 0:00:05.8]} 54. g5 {[%clk
0:00:20]} 54... Qb1 {[%clk 0:00:05]} 55. Qg4+ {[%clk 0:00:19.3]} 55... Kb3
{[%clk 0:00:04.7]} 56. g6 {[%clk 0:00:20.2]} 56... Qh1+ {[%clk 0:00:04.1]} 57.
Kg3 {[%clk 0:00:20.6]} 57... Qg1+ {[%clk 0:00:04.5]} 58. Kf4 {[%clk 0:00:21.2]}
58... Qd4+ {[%clk 0:00:05.2]} 59. Kg5 {[%clk 0:00:21.2]} 59... Qe5+ {[%clk
0:00:05.5]} 60. Kh6 {[%clk 0:00:21.7]} 60... Qh8+ {[%clk 0:00:04.9]} 61. Kg5
{[%clk 0:00:22.3]} 61... a4 {[%clk 0:00:05.8]} 62. Kf5 {[%clk 0:00:22]} 62... a3
{[%clk 0:00:05.5]} 63. g7 {[%clk 0:00:22.4]} 63... Qg8 {[%clk 0:00:06.1]} 64.
Qg3+ {[%clk 0:00:22.6]} 64... Kb2 {[%clk 0:00:06.7]} 65. Qg2+ {[%clk 0:00:22.8]}
65... Kb3 {[%clk 0:00:07.2]} 66. Qg3+ {[%clk 0:00:22.5]} 66... Kb2 {[%clk
0:00:07.8]} 67. Ke4 {[%clk 0:00:22.9]} 67... a2 {[%clk 0:00:07.7]} 68. Qg2+
{[%clk 0:00:23.4]} 68... Kb3 {[%clk 0:00:08.3]} 69. Qg3+ {[%clk 0:00:23.7]}
69... Ka4 {[%clk 0:00:08.3]} 70. Qg1 {[%clk 0:00:22.6]} 70... Qe6+ {[%clk
0:00:06.9]} 71. Kd3 {[%clk 0:00:22.7]} 71... Qd5+ {[%clk 0:00:06.9]} 72. Kc2
{[%clk 0:00:22.9]} 72... Qb3+ {[%clk 0:00:06.6]} 73. Kd2 {[%clk 0:00:22.3]}
73... Qb2+ {[%clk 0:00:06.3]} 74. Kd3 {[%clk 0:00:22.7]} 74... Qb1+ {[%clk
0:00:06.4]} 75. Qxb1 {[%clk 0:00:14.6]} 75... axb1=Q+ {[%clk 0:00:07.3]} 76. Kc3
{[%clk 0:00:15.4]} 76... Qg1 {[%clk 0:00:07.8]} 0-1

[Event "Early-Titled-Tuesday-Blitz-March-05-2024"]
[Site "Chess.com"]
[Date "2024.03.05"]
[Round "2"]
[White "tarno17"]
[Black "tandaleo"]
[Result "0-1"]
[WhiteElo "2142"]
[BlackElo "2458"]
[TimeControl "180+1"]
[EndTime "8:20:41 PST"]
[Termination "tandaleo won by checkmate"]

1. e4 {[%clk 0:03:00.9]} 1... c6 {[%clk 0:02:54.7]} 2. d4 {[%clk 0:02:59.5]}
2... d5 {[%clk 0:02:54.4]} 3. Nc3 {[%clk 0:02:59.5]} 3... dxe4 {[%clk
0:02:51.6]} 4. Nxe4 {[%clk 0:03:00.4]} 4... Nf6 {[%clk 0:02:51.8]} 5. Ng3 {[%clk
0:03:00.3]} 5... h5 {[%clk 0:02:38.2]} 6. h4 {[%clk 0:03:00.1]} 6... Bg4 {[%clk
0:02:38]} 7. Be2 {[%clk 0:02:58.8]} 7... e6 {[%clk 0:02:37.5]} 8. Bg5 {[%clk
0:02:39.4]} 8... Nbd7 {[%clk 0:02:24.7]} 9. Nf3 {[%clk 0:02:33.4]} 9... Qa5+
{[%clk 0:02:17.4]} 10. c3 {[%clk 0:01:59.9]} 10... Bd6 {[%clk 0:02:15.8]} 11.
Qc2 {[%clk 0:01:40.8]} 11... Bxg3 {[%clk 0:01:51.5]} 12. fxg3 {[%clk 0:01:39.5]}
12... Bf5 {[%clk 0:01:51.9]} 13. Qb3 {[%clk 0:01:33.2]} 13... Qb6 {[%clk
0:01:51.6]} 14. Qxb6 {[%clk 0:01:31.3]} 14... axb6 {[%clk 0:01:51.1]} 15. Bxf6
{[%clk 0:01:18.4]} 15... Nxf6 {[%clk 0:01:49.1]} 16. Nd2 {[%clk 0:01:09.2]}
16... b5 {[%clk 0:01:22.9]} 17. O-O {[%clk 0:01:08.4]} 17... Ke7 {[%clk
0:01:20]} 18. a3 {[%clk 0:00:54.4]} 18... Nd5 {[%clk 0:00:46.1]} 19. Rae1 {[%clk
0:00:37]} 19... Bg6 {[%clk 0:00:40.1]} 20. Bf3 {[%clk 0:00:31.5]} 20... Nb6
{[%clk 0:00:21]} 21. Be4 {[%clk 0:00:31.8]} 21... Bxe4 {[%clk 0:00:20.5]} 22.
Nxe4 {[%clk 0:00:32.7]} 22... Nc4 {[%clk 0:00:15.6]} 23. Ng5 {[%clk 0:00:31]}
23... Rhf8 {[%clk 0:00:14]} 24. Re2 {[%clk 0:00:31.1]} 24... Kd6 {[%clk
0:00:10.6]} 25. Ne4+ {[%clk 0:00:31.2]} 25... Ke7 {[%clk 0:00:10.2]} 26. Rfe1
{[%clk 0:00:26.3]} 26... Nd6 {[%clk 0:00:06.9]} 27. Ng5 {[%clk 0:00:24.8]} 27...
Kd7 {[%clk 0:00:06.9]} 28. Rf1 {[%clk 0:00:24.5]} 28... Rae8 {[%clk 0:00:06.5]}
29. Ne4 {[%clk 0:00:22.6]} 29... Nxe4 {[%clk 0:00:06.5]} 30. Rxe4 {[%clk
0:00:23.5]} 30... f6 {[%clk 0:00:06.8]} 31. Rfe1 {[%clk 0:00:22.3]} 31... Re7
{[%clk 0:00:07.3]} 32. Kf2 {[%clk 0:00:22.4]} 32... Rfe8 {[%clk 0:00:07.6]} 33.
Kf3 {[%clk 0:00:22.4]} 33... Kd6 {[%clk 0:00:08.2]} 34. g4 {[%clk 0:00:22.4]}
34... hxg4+ {[%clk 0:00:07.5]} 35. Rxg4 {[%clk 0:00:20.3]} 35... Rh8 {[%clk
0:00:07.7]} 36. g3 {[%clk 0:00:20.1]} 36... Rh5 {[%clk 0:00:07.9]} 37. Rge4
{[%clk 0:00:18.7]} 37... Rf5+ {[%clk 0:00:08.3]} 38. Kg2 {[%clk 0:00:17.8]}
38... Rh5 {[%clk 0:00:07.3]} 39. Kh3 {[%clk 0:00:17]} 39... g5 {[%clk
0:00:07.3]} 40. Rf1 {[%clk 0:00:13]} 40... f5 {[%clk 0:00:07.7]} 41. Re5 {[%clk
0:00:12.2]} 41... gxh4 {[%clk 0:00:07]} 42. gxh4 {[%clk 0:00:11.6]} 42... Reh7
{[%clk 0:00:07.7]} 43. Rf4 {[%clk 0:00:12.2]} 43... R5h6 {[%clk 0:00:07.7]} 44.
Re3 {[%clk 0:00:08.2]} 44... b6 {[%clk 0:00:06]} 45. Rg3 {[%clk 0:00:08.1]}
45... Ke7 {[%clk 0:00:05.3]} 46. Rg8 {[%clk 0:00:08.3]} 46... Kf6 {[%clk
0:00:05.2]} 47. Rf8+ {[%clk 0:00:08.5]} 47... Ke7 {[%clk 0:00:05.5]} 48. Rc8
{[%clk 0:00:08.3]} 48... Kd6 {[%clk 0:00:04.6]} 49. Rd8+ {[%clk 0:00:08.2]}
49... Kc7 {[%clk 0:00:04.6]} 50. Ra8 {[%clk 0:00:08.2]} 50... Kb7 {[%clk
0:00:03.5]} 51. Re8 {[%clk 0:00:08.6]} 51... Rg7 {[%clk 0:00:03.4]} 52. Rf3
{[%clk 0:00:06.6]} 52... Rg4 {[%clk 0:00:03.6]} 53. Re7+ {[%clk 0:00:05.8]}
53... Ka6 {[%clk 0:00:03.7]} 54. Kh2 {[%clk 0:00:01.6]} 54... Rhxh4+ {[%clk
0:00:03.7]} 55. Rh3 {[%clk 0:00:02.4]} 55... Rxh3+ {[%clk 0:00:03.6]} 56. Kxh3
{[%clk 0:00:03.3]} 56... Re4 {[%clk 0:00:04.1]} 57. Rc7 {[%clk 0:00:03.4]} 57...
Re2 {[%clk 0:00:03.2]} 58. Rc8 {[%clk 0:00:03.4]} 58... Rxb2 {[%clk 0:00:02.6]}
59. Rxc6 {[%clk 0:00:04.1]} 59... Rb3 {[%clk 0:00:02.9]} 60. Rxe6 {[%clk
0:00:04.7]} 60... Rxc3+ {[%clk 0:00:03.4]} 61. Kh4 {[%clk 0:00:04.5]} 61... Rxa3
{[%clk 0:00:03.9]} 62. Kg5 {[%clk 0:00:04.5]} 62... Rd3 {[%clk 0:00:04.2]} 63.
Rd6 {[%clk 0:00:05.1]} 63... b4 {[%clk 0:00:04.4]} 64. Kxf5 {[%clk 0:00:05.4]}
64... b3 {[%clk 0:00:05]} 65. Ke4 {[%clk 0:00:05.7]} 65... b2 {[%clk 0:00:05.2]}
66. Kxd3 {[%clk 0:00:04.8]} 66... b1=Q+ {[%clk 0:00:05.8]} 67. Ke3 {[%clk
0:00:04.8]} 67... Qe1+ {[%clk 0:00:04.9]} 68. Kf4 {[%clk 0:00:04.9]} 68... Qf2+
{[%clk 0:00:05.3]} 69. Ke5 {[%clk 0:00:05.4]} 69... Qg3+ {[%clk 0:00:05.2]} 70.
Ke6 {[%clk 0:00:05.6]} 70... Qg6+ {[%clk 0:00:05.1]} 71. Kd7 {[%clk 0:00:06]}
71... Qf7+ {[%clk 0:00:05.5]} 72. Kc6 {[%clk 0:00:06.4]} 72... Ka5 {[%clk
0:00:05.2]} 73. Rd5+ {[%clk 0:00:06.2]} 73... Ka6 {[%clk 0:00:05.2]} 74. Kd6
{[%clk 0:00:06.7]} 74... Qf8+ {[%clk 0:00:05.1]} 75. Ke5 {[%clk 0:00:07.2]}
75... b5 {[%clk 0:00:05.6]} 76. Rd6+ {[%clk 0:00:05]} 76... Ka5 {[%clk
0:00:05.3]} 77. d5 {[%clk 0:00:05.6]} 77... b4 {[%clk 0:00:05.4]} 78. Ke6 {[%clk
0:00:04.8]} 78... b3 {[%clk 0:00:05.1]} 79. Rc6 {[%clk 0:00:03.5]} 79... Qe8+
{[%clk 0:00:04.9]} 80. Kd6 {[%clk 0:00:03.1]} 80... b2 {[%clk 0:00:04.9]} 81.
Rc5+ {[%clk 0:00:03.6]} 81... Ka4 {[%clk 0:00:04.8]} 82. Rc4+ {[%clk 0:00:03.4]}
82... Kb3 {[%clk 0:00:05.4]} 83. Rc5 {[%clk 0:00:03.2]} 83... b1=Q {[%clk
0:00:05.5]} 84. Rc7 {[%clk 0:00:01.7]} 84... Qf8+ {[%clk 0:00:04.7]} 85. Kc6
{[%clk 0:00:01.9]} 85... Qc1+ {[%clk 0:00:04.9]} 86. Kb7 {[%clk 0:00:01.6]}
86... Qxc7+ {[%clk 0:00:04.5]} 87. Kxc7 {[%clk 0:00:02.5]} 87... Kc4 {[%clk
0:00:03.6]} 88. d6 {[%clk 0:00:02.8]} 88... Kc5 {[%clk 0:00:04.2]} 89. d7 {[%clk
0:00:03.1]} 89... Qd6+ {[%clk 0:00:04.7]} 90. Kc8 {[%clk 0:00:03]} 90... Qa6+
{[%clk 0:00:04.4]} 91. Kb8 {[%clk 0:00:02.4]} 91... Qb6+ {[%clk 0:00:04.5]} 92.
Kc8 {[%clk 0:00:02.8]} 92... Qc6+ {[%clk 0:00:04.7]} 93. Kd8 {[%clk 0:00:02.6]}
93... Kd6 {[%clk 0:00:05.2]} 94. Ke8 {[%clk 0:00:02.2]} 94... Qxd7+ {[%clk
0:00:05.9]} 95. Kf8 {[%clk 0:00:02.6]} 95... Qh7 {[%clk 0:00:06.6]} 96. Ke8
{[%clk 0:00:03]} 96... Qg8# {[%clk 0:00:07.4]} 0-1